bitfinex/quotes_BTCUSD_20250614
["timestamp","ask_amount","ask_price","bid_price","bid_amount"]
[1749926988620,0.4095834,104660.0,104650.0,0.29223431]
[1749926988621,0.0695834,104660.0,104650.0,0.29223431]
[1749926990479,0.4095834,104660.0,104650.0,0.29223431]
[1749926990682,0.4185142,104660.0,104650.0,0.29223431]
[1749926991480,0.41913778,104660.0,104650.0,0.29223431]
[1749926991703,0.41851415,104660.0,104650.0,0.29223431]
[1749926991900,0.4095834,104660.0,104650.0,0.29223431]
[1749926992210,0.42806855,104660.0,104650.0,0.29223431]
[1749926992423,0.42806854,104660.0,104650.0,0.29223431]
[1749926992649,0.41851407,104660.0,104650.0,0.29223431]
[1749926993268,0.41851408,104660.0,104650.0,0.29223431]
[1749926993898,0.4095834,104660.0,104650.0,0.29223431]
[1749926994087,0.42806845,104660.0,104650.0,0.29223431]
[1749926994482,0.41913778,104660.0,104650.0,0.29223431]
[1749926994898,0.42806845,104660.0,104650.0,0.29223431]
[1749926995506,0.41851407,104660.0,104650.0,0.29223431]
[1749926995708,0.41851409,104660.0,104650.0,0.35763047]
[1749926995926,0.41913787,104660.0,104650.0,0.35763047]
[1749926996128,0.4095834,104660.0,104650.0,0.35763047]
[1749926996353,0.42806845,104660.0,104650.0,0.35763047]
[1749926996577,0.42806845,104660.0,104650.0,0.29223431]
[1749926996783,0.40002911,104660.0,104650.0,0.29223431]
[1749926997005,0.41851407,104660.0,104650.0,0.29223431]
[1749926997211,0.4095834,104660.0,104650.0,0.29223431]
[1749926997424,0.41913778,104660.0,104650.0,0.29223431]
[1749926997658,0.42806998,104660.0,104650.0,0.29223431]
[1749926998877,0.41913778,104660.0,104650.0,0.29223431]
[1749926999108,0.42807,104660.0,104650.0,0.29223431]
[1749926999302,0.41913778,104660.0,104650.0,0.29223431]
[1749926999501,0.42806993,104660.0,104650.0,0.29223431]
[1749926999908,0.41851555,104660.0,104650.0,0.29223431]
[1749927000110,0.41851554,104660.0,104650.0,0.29223431]
[1749927000542,0.42807001,104660.0,104650.0,0.29223431]
[1749927000950,0.41851554,104660.0,104650.0,0.29223431]
[1749927001166,0.4095834,104660.0,104650.0,0.29223431]
[1749927001395,0.43762457,104660.0,104650.0,0.29223431]
[1749927001575,0.42807001,104660.0,104650.0,0.45279431]
[1749927001794,0.41913787,104660.0,104650.0,0.45279431]
[1749927002428,0.42807001,104660.0,104650.0,0.45279431]
[1749927002673,0.41913787,104660.0,104650.0,0.45279431]
[1749927002870,0.42807011,104660.0,104650.0,0.45279431]
[1749927003069,0.41913787,104660.0,104650.0,0.45279431]
[1749927003279,0.42807048,104660.0,104650.0,0.45279431]
[1749927003487,0.42807057,104660.0,104650.0,0.45279431]
[1749927003693,0.41913787,104660.0,104650.0,0.45279431]
[1749927003926,0.42807057,104660.0,104650.0,0.45279431]
[1749927004147,0.4095834,104660.0,104650.0,0.45279431]
[1749927004357,0.4185161,104660.0,104650.0,0.45279431]
[1749927004578,0.42807005,104660.0,104650.0,0.45279431]
[1749927004780,0.41913787,104660.0,104650.0,0.45279431]
[1749927005000,0.42807028,104660.0,104650.0,0.45279431]
[1749927005231,0.41913787,104660.0,104650.0,0.45279431]
[1749927005458,0.41913787,104660.0,104650.0,0.51814246]
[1749927005668,0.43762476,104660.0,104650.0,0.45279431]
[1749927005882,0.43762478,104660.0,104650.0,0.45279431]
[1749927006090,0.43762476,104660.0,104650.0,0.45279431]
[1749927006513,0.41851573,104660.0,104650.0,0.45279431]
[1749927006734,0.4280702,104660.0,104650.0,0.45279431]
[1749927006966,0.41913787,104660.0,104650.0,0.45279431]
[1749927007180,0.41913787,104660.0,104650.0,0.51814246]
[1749927007394,0.40896144,104660.0,104650.0,0.45279431]
[1749927007621,0.0504751,104660.0,104650.0,0.45279431]
[1749927007853,0.0504751,104660.0,104650.0,0.54903607]
[1749927014810,0.01193171,104660.0,104650.0,1.52419267]
[1749927015019,0.01193171,104660.0,104650.0,0.84393607]
[1749927019041,0.01193171,104660.0,104650.0,0.84389607]
[1749927021445,0.01193171,104660.0,104650.0,0.68337607]
[1749927021654,0.01193171,104660.0,104650.0,0.84389607]
[1749927022524,0.01193171,104660.0,104650.0,0.68337607]
[1749927022730,0.01193171,104660.0,104650.0,0.84389607]
[1749927023617,0.01193171,104660.0,104650.0,0.68337607]
[1749927023829,0.01193171,104660.0,104650.0,0.84389607]
[1749927026651,0.01193171,104660.0,104650.0,0.68337607]
[1749927026890,0.01193171,104660.0,104650.0,0.84389607]
[1749927035373,0.01193171,104660.0,104650.0,0.87236209]
[1749927039912,0.01193171,104660.0,104650.0,0.87136209]
[1749927041448,0.01193171,104660.0,104650.0,1.55161869]
[1749927043001,0.01193171,104660.0,104650.0,1.58957339]
[1749927043219,0.01193171,104660.0,104650.0,1.56110737]
[1749927047455,0.01193171,104660.0,104650.0,1.64393351]
[1749927048314,0.01193171,104660.0,104650.0,1.67259662]
[1749927049858,0.01193171,104660.0,104650.0,1.64393351]
[1749927052348,0.01193171,104660.0,104650.0,1.67259263]
[1749927052797,0.34,104680.0,104670.0,0.2006299]
[1749927052798,0.0619,104680.0,104670.0,0.2006299]
[1749927053020,0.0619478,104680.0,104670.0,0.370663]
[1749927053947,0.0659478,104680.0,104670.0,0.370663]
[1749927054160,0.0719478,104680.0,104670.0,0.371663]
[1749927055029,0.28595367,104690.0,104680.0,0.21971639]
[1749927056062,0.32495293,104690.0,104680.0,0.21971639]
[1749927056275,0.32995293,104690.0,104680.0,0.21971639]
[1749927056495,0.52099314,104690.0,104680.0,0.21016402]
[1749927056708,0.52699314,104690.0,104680.0,0.22071648]
[1749927057162,0.52699314,104690.0,104680.0,0.20161138]
[1749927057395,0.52699314,104690.0,104680.0,0.22071685]
[1749927057584,5.10674912,104690.0,104680.0,0.001]
[1749927057797,5.05969832,104690.0,104680.0,0.001]
[1749927058001,5.25617832,104690.0,104680.0,0.001]
[1749927058653,5.28473243,104690.0,104680.0,0.001]
[1749927059258,5.25617832,104690.0,104680.0,0.001]
[1749927059466,5.28473243,104690.0,104680.0,0.001]
[1749927061115,5.38088165,104690.0,104680.0,0.001]
[1749927062162,5.35232754,104690.0,104680.0,0.001]
[1749927062774,5.38088165,104690.0,104680.0,0.001]
[1749927063395,5.28473243,104690.0,104680.0,0.001]
[1749927063610,5.09569832,104690.0,104680.0,0.001]
[1749927063841,5.29921832,104690.0,104680.0,0.001]
[1749927065080,5.33667094,104690.0,104680.0,0.001]
[1749927065298,5.3366705,104690.0,104680.0,0.001]
[1749927065766,5.43281911,104690.0,104680.0,0.001]
[1749927065993,5.4328191,104690.0,104680.0,0.001]
[1749927066264,5.43281879,104690.0,104680.0,0.001]
[1749927066518,5.33666984,104690.0,104680.0,0.001]
[1749927066726,5.33666987,104690.0,104680.0,0.001]
[1749927067156,5.3366699,104690.0,104680.0,0.001]
[1749927067365,5.5366699,104690.0,104680.0,0.001]
[1749927067570,5.53666981,104690.0,104680.0,0.001]
[1749927067828,4.79941941,104690.0,104680.0,0.22071639]
[1749927068060,4.53750291,104690.0,104680.0,0.29476867]
[1749927068285,4.49511697,104690.0,104680.0,0.29476867]
[1749927068512,4.84401519,104690.0,104680.0,0.29476867]
[1749927068745,4.84401595,104690.0,104680.0,0.29476867]
[1749927068975,4.84401589,104690.0,104680.0,0.29476867]
[1749927069205,4.83511697,104690.0,104680.0,0.29476867]
[1749927069422,4.85358711,104690.0,104680.0,0.29476867]
[1749927069644,4.8344837,104690.0,104680.0,0.29476867]
[1749927069879,4.83448352,104690.0,104680.0,0.29476867]
[1749927070115,4.82493205,104690.0,104680.0,0.29476867]
[1749927070344,0.45667,104690.0,104680.0,0.29476867]
[1749927070572,0.45667002,104690.0,104680.0,0.29476867]
[1749927070800,0.45667006,104690.0,104680.0,0.29476867]
[1749927071021,0.45667012,104690.0,104680.0,0.29476867]
[1749927071256,0.4477516,104690.0,104680.0,0.29476867]
[1749927071486,0.43820014,104690.0,104680.0,0.29476867]
[1749927071706,0.45667016,104690.0,104680.0,0.29476867]
[1749927071921,0.44775169,104690.0,104680.0,0.29476867]
[1749927072344,0.45667007,104690.0,104680.0,0.29476867]
[1749927072601,0.4477516,104690.0,104680.0,0.29476867]
[1749927072765,0.45667007,104690.0,104680.0,0.29476867]
[1749927072974,0.46622171,104690.0,104680.0,0.29476867]
[1749927073424,0.45730324,104690.0,104680.0,0.29476867]
[1749927073635,0.47577352,104690.0,104680.0,0.29476867]
[1749927073888,0.46685506,104690.0,104680.0,0.29476867]
[1749927074105,0.47577329,104690.0,104680.0,0.29476867]
[1749927074316,0.47577321,104690.0,104680.0,0.29476867]
[1749927074539,0.47577316,104690.0,104680.0,0.29476867]
[1749927074750,0.46685506,104690.0,104680.0,0.29476867]
[1749927074972,0.45730324,104690.0,104680.0,0.29476867]
[1749927075190,0.47577249,104690.0,104680.0,0.29476867]
[1749927075395,0.47577313,104690.0,104680.0,0.29476867]
[1749927075621,0.47577305,104690.0,104680.0,0.29476867]
[1749927075839,0.46685624,104690.0,104680.0,0.29476867]
[1749927076052,0.47577368,104690.0,104680.0,0.29476867]
[1749927076725,0.47577136,104690.0,104680.0,0.29476867]
[1749927076943,0.46685624,104690.0,104680.0,0.29476867]
[1749927077378,0.47577136,104690.0,104680.0,0.29476867]
[1749927078033,0.65726004,104690.0,104680.0,0.22071648]
[1749927078264,5.04462483,104690.0,104680.0,0.22071648]
[1749927078493,5.13205584,104690.0,104680.0,0.001]
[1749927078712,5.15767026,104690.0,104680.0,0.001]
[1749927078932,5.15767055,104690.0,104680.0,0.001]
[1749927079175,5.15767054,104690.0,104680.0,0.001]
[1749927079385,5.14875584,104690.0,104680.0,0.001]
[1749927079591,4.85602272,104690.0,104680.0,0.001]
[1749927080013,4.86492085,104690.0,104680.0,0.001]
[1749927080649,4.86492093,104690.0,104680.0,0.001]
[1749927080857,4.92330146,104690.0,104680.0,0.001]
[1749927081063,4.93219968,104690.0,104680.0,0.001]
[1749927081260,4.93219966,104690.0,104680.0,0.001]
[1749927081471,4.93219965,104690.0,104680.0,0.001]
[1749927081915,4.9321997,104690.0,104680.0,0.001]
[1749927082556,0.01910666,104670.0,104660.0,0.26534935]
[1749927082769,4.4160254,104670.0,104660.0,0.2845059]
[1749927083205,4.40647166,104670.0,104660.0,0.2845059]
[1749927083907,4.40647166,104670.0,104660.0,0.2865059]
[1749927084561,4.40647156,104670.0,104660.0,0.2885059]
[1749927086971,4.41602521,104670.0,104660.0,0.2885059]
[1749927087178,4.41602512,104670.0,104660.0,0.2885059]
[1749927087382,4.40647156,104670.0,104660.0,0.2885059]
[1749927087798,4.41602512,104670.0,104660.0,0.2885059]
[1749927088046,4.60710229,104670.0,104660.0,0.2789518]
[1749927088255,4.42557932,104670.0,104660.0,0.288506]
[1749927088463,4.43513315,104670.0,104660.0,0.288506]
[1749927089560,4.42557932,104670.0,104660.0,0.2980601]
[1749927089760,4.40647193,104670.0,104660.0,0.2980601]
[1749927089967,4.41602558,104670.0,104660.0,0.2980601]
[1749927090182,4.42494254,104670.0,104660.0,0.2980601]
[1749927090397,4.41602558,104670.0,104660.0,0.2980601]
[1749927091074,4.387365,104670.0,104660.0,0.36387293]
[1749927091291,4.41538826,104670.0,104660.0,0.36387293]
[1749927091508,4.41538828,104670.0,104660.0,0.36387293]
[1749927091723,4.4064712,104670.0,104660.0,0.36387293]
[1749927091969,4.41538827,104670.0,104660.0,0.36387293]
[1749927092197,4.41538832,104670.0,104660.0,0.2980601]
[1749927092437,4.40583511,104670.0,104660.0,0.2980601]
[1749927092639,4.40583514,104670.0,104660.0,0.2980601]
[1749927093049,4.39691801,104670.0,104660.0,0.2980601]
[1749927093283,4.42494157,104670.0,104660.0,0.2980601]
[1749927093496,4.42494148,104670.0,104660.0,0.2980601]
[1749927093701,4.43449495,104670.0,104660.0,0.2980601]
[1749927093920,4.43449494,104670.0,104660.0,0.2980601]
[1749927094347,4.42557786,104670.0,104660.0,0.2980601]
[1749927094608,4.43449486,104670.0,104660.0,0.2980601]
[1749927094827,4.4249414,104670.0,104660.0,0.2980601]
[1749927095106,4.42557786,104670.0,104660.0,0.2980601]
[1749927095314,4.43449486,104670.0,104660.0,0.2980601]
[1749927095523,4.43449487,104670.0,104660.0,0.2980601]
[1749927096183,4.42557786,104670.0,104660.0,0.2980601]
[1749927096384,4.43449487,104670.0,104660.0,0.2980601]
[1749927097182,4.43449476,104670.0,104660.0,0.2980601]
[1749927097648,4.43449466,104670.0,104660.0,0.2980601]
[1749927097850,4.43513151,104670.0,104660.0,0.2980601]
[1749927097973,4.4344948,104670.0,104660.0,0.2980601]
[1749927098185,4.44404836,104670.0,104660.0,0.2980601]
[1749927098822,4.43513142,104670.0,104660.0,0.2980601]
[1749927099198,4.43449523,104670.0,104660.0,0.2980601]
[1749927099398,4.42557786,104670.0,104660.0,0.2980601]
[1749927099620,4.41602439,104670.0,104660.0,0.2980601]
[1749927100067,4.42557786,104670.0,104660.0,0.2980601]
[1749927100249,4.43449506,104670.0,104660.0,0.2980601]
[1749927100714,4.42557786,104670.0,104660.0,0.2980601]
[1749927100940,4.43449506,104670.0,104660.0,0.2980601]
[1749927101172,4.41602439,104670.0,104660.0,0.2980601]
[1749927101390,4.43449507,104670.0,104660.0,0.2980601]
[1749927101803,4.43449497,104670.0,104660.0,0.2980601]
[1749927102003,4.44404853,104670.0,104660.0,0.2980601]
[1749927102658,4.43513132,104670.0,104660.0,0.2980601]
[1749927102865,4.44404853,104670.0,104660.0,0.2980601]
[1749927103075,4.43513132,104670.0,104660.0,0.2980601]
[1749927103501,4.44404843,104670.0,104660.0,0.2980601]
[1749927103706,5.04261388,104670.0,104660.0,0.0040478]
[1749927103932,5.5463399,104670.0,104660.0,0.0040478]
[1749927104135,5.5463399,104670.0,104640.0,0.45305631]
[1749927104136,0.03822117,104650.0,104640.0,0.45305631]
[1749927104340,4.4160306,104650.0,104640.0,0.45305631]
[1749927104542,4.41603051,104650.0,104640.0,0.29265631]
[1749927104794,4.40647513,104650.0,104640.0,0.29265631]
[1749927105408,4.41603051,104650.0,104640.0,0.29765631]
[1749927105638,4.40647513,104650.0,104640.0,0.29765631]
[1749927105881,4.41603042,104650.0,104640.0,0.29765631]
[1749927106737,4.40647513,104650.0,104640.0,0.29965631]
[1749927106954,4.41603024,104650.0,104640.0,0.29965631]
[1749927107161,4.18773431,104650.0,104640.0,0.29965631]
[1749927107369,4.20684462,104650.0,104640.0,0.29965631]
[1749927107812,4.19728924,104650.0,104640.0,0.29965631]
[1749927108051,4.19728924,104650.0,104640.0,0.36477692]
[1749927108274,4.21640037,104650.0,104640.0,0.2996564]
[1749927108476,4.21640037,104650.0,104640.0,0.29010047]
[1749927108707,4.21640037,104650.0,104640.0,0.30921242]
[1749927108929,4.20684471,104650.0,104640.0,0.30921242]
[1749927109350,4.20684471,104650.0,104640.0,0.29965649]
[1749927109561,4.38840301,104650.0,104640.0,0.0703]
[1749927109771,4.3692927,104650.0,104640.0,0.0703]
[1749927110050,4.7092927,104650.0,104640.0,0.07985657]
[1749927110669,4.7092927,104650.0,104640.0,0.27098806]
[1749927110892,4.7092927,104650.0,104640.0,0.28054454]
[1749927111768,4.79588645,104650.0,104640.0,0.007]
[1749927112198,4.79588645,104650.0,104640.0,0.01655657]
[1749927112401,4.69973723,104650.0,104640.0,0.27964454]
[1749927113083,4.77869723,104650.0,104640.0,0.007]
[1749927113291,4.93909723,104650.0,104640.0,0.007]
[1749927113500,5.03524645,104650.0,104640.0,0.007]
[1749927113710,4.90309723,104650.0,104640.0,0.007]
[1749927114141,4.90309723,104650.0,104640.0,0.002]
[1749927114766,4.90309723,104650.0,104640.0,0.004]
[1749927115403,4.90309723,104650.0,104640.0,0.0344]
[1749927116425,4.90309723,104650.0,104640.0,0.0655]
[1749927117285,4.51817893,104650.0,104640.0,0.31574353]
[1749927117498,0.35911022,104650.0,104640.0,0.31574353]
[1749927118607,0.36866551,104650.0,104640.0,0.31574353]
[1749927118786,0.37822089,104650.0,104640.0,0.31574353]
[1749927119930,0.37822089,104650.0,104640.0,0.2853001]
[1749927120149,4.71884808,104650.0,104640.0,0.0655]
[1749927120592,4.71884808,104650.0,104640.0,0.26618788]
[1749927120803,4.37884808,104650.0,104640.0,0.27574418]
[1749927121227,4.37884808,104650.0,104640.0,0.27574445]
[1749927121642,4.37884808,104650.0,104640.0,0.28530075]
[1749927121848,4.37884808,104650.0,104640.0,0.33485714]
[1749927122065,4.17817947,104650.0,104640.0,0.33485714]
[1749927122276,4.3692927,104650.0,104640.0,0.29485686]
[1749927122490,4.18773485,104650.0,104640.0,0.29485686]
[1749927122705,4.56307957,104660.0,104650.0,0.28357956]
[1749927122921,4.90307957,104660.0,104650.0,0.28357956]
[1749927123134,4.90307957,104660.0,104650.0,0.27402446]
[1749927123588,4.168624,104660.0,104650.0,0.27402446]
[1749927123806,0.00014322,104670.0,104660.0,0.5597581]
[1749927124069,0.22,104720.0,104710.0,0.02864945]
[1749927124297,4.39754151,104740.0,104730.0,0.21961122]
[1749927124528,4.7765754,104740.0,104730.0,0.44453122]
[1749927124754,4.31676153,104740.0,104730.0,0.44453131]
[1749927124964,4.23074325,104740.0,104730.0,0.42543551]
[1749927125185,4.23074325,104740.0,104710.0,0.27270317]
[1749927125186,0.20052117,104730.0,104710.0,0.27270317]
[1749927125377,4.19727017,104720.0,104710.0,0.52735438]
[1749927125626,0.03756377,104720.0,104710.0,0.30135262]
[1749927125836,0.21008356,104720.0,104710.0,0.0626]
[1749927126050,0.21008356,104720.0,104710.0,0.224]
[1749927126269,0.25304356,104720.0,104710.0,0.0626]
[1749927126490,0.59304356,104720.0,104710.0,0.43414381]
[1749927126714,4.76166756,104720.0,104710.0,0.42455381]
[1749927126941,4.77058485,104720.0,104710.0,0.24310009]
[1749927127391,4.76166756,104720.0,104710.0,0.43710381]
[1749927127850,4.76166756,104720.0,104710.0,0.44665363]
[1749927128085,4.52708994,104720.0,104710.0,0.45620317]
[1749927128310,4.53727071,104720.0,104710.0,0.45820317]
[1749927128533,4.54618803,104720.0,104710.0,0.45820317]
[1749927128755,4.5461882,104720.0,104710.0,0.45820317]
[1749927129014,4.55573747,104720.0,104710.0,0.44865363]
[1749927129263,0.37756327,104720.0,104710.0,0.4677529]
[1749927129513,0.56854939,104720.0,104710.0,0.43910381]
[1749927129730,0.55900035,104720.0,104710.0,0.26815381]
[1749927129970,0.55900035,104720.0,104710.0,0.43914372]
[1749927130244,0.55008384,104720.0,104710.0,0.43914372]
[1749927130523,0.36801387,104720.0,104710.0,0.50686988]
[1749927130732,0.38711204,104720.0,104710.0,0.45824308]
[1749927130943,0.38711199,104720.0,104710.0,0.45824308]
[1749927131147,0.387112,104720.0,104710.0,0.45824308]
[1749927131555,0.37819543,104720.0,104710.0,0.45824308]
[1749927131774,0.37756296,104720.0,104710.0,0.45824308]
[1749927131981,0.38711205,104720.0,104710.0,0.45824308]
[1749927132397,0.34891673,104720.0,104710.0,0.45824308]
[1749927132608,0.34954845,104720.0,104710.0,0.45824308]
[1749927133069,4.45510588,104740.0,104730.0,0.2725635]
[1749927133285,4.80465305,104740.0,104730.0,0.22394]
[1749927133500,4.8135709,104740.0,104730.0,0.22394]
[1749927133715,4.81357093,104740.0,104730.0,0.22394]
[1749927133931,4.81357111,104740.0,104730.0,0.23348836]
[1749927134147,4.80402405,104740.0,104730.0,0.22394]
[1749927134369,4.79510588,104740.0,104730.0,0.22394]
[1749927134579,4.79610588,104740.0,104730.0,0.22394]
[1749927134794,4.75314588,104740.0,104730.0,0.22394]
[1749927134998,4.79710588,104740.0,104730.0,0.22394]
[1749927135209,4.80602407,104740.0,104730.0,0.22394]
[1749927135683,4.80602452,104740.0,104730.0,0.22394]
[1749927135903,4.89262638,104740.0,104710.0,0.40106305]
[1749927136120,0.36864644,104720.0,104710.0,0.44724157]
[1749927136327,0.37819571,104720.0,104710.0,0.2952713]
[1749927136533,0.36864644,104720.0,104710.0,0.53945047]
[1749927136768,0.36864644,104720.0,104710.0,0.37777047]
[1749927136984,0.34954854,104720.0,104710.0,0.59632971]
[1749927137192,0.37819516,104720.0,104710.0,0.59628971]
[1749927137398,0.3871142,104720.0,104710.0,0.53941047]
[1749927137609,0.38711422,104720.0,104710.0,0.53941047]
[1749927137826,0.38711422,104720.0,104710.0,0.54241047]
[1749927138030,0.37819497,104720.0,104710.0,0.54241047]
[1749927138450,0.36801641,104720.0,104710.0,0.54241047]
[1749927138665,0.35909726,104720.0,104710.0,0.54241047]
[1749927138877,0.36801599,104720.0,104710.0,0.54441047]
[1749927139092,0.34954845,104720.0,104710.0,0.61775371]
[1749927139324,0.37756462,104720.0,104710.0,0.54441047]
[1749927139557,0.37756444,104720.0,104710.0,0.54441047]
[1749927139761,0.3775644,104720.0,104710.0,0.54441047]
[1749927139967,0.35909699,104720.0,104710.0,0.54441047]
[1749927140178,4.168624,104730.0,104720.0,0.28303219]
[1749927140391,0.00954799,104730.0,104720.0,0.29317147]
[1749927140624,0.03756285,104730.0,104720.0,0.29317147]
[1749927140839,0.03756292,104730.0,104720.0,0.28303219]
[1749927141062,0.02801465,104730.0,104720.0,0.28303219]
[1749927141298,0.0280146,104730.0,104720.0,0.28403219]
[1749927141504,0.02801462,104730.0,104720.0,0.28403219]
[1749927141721,0.03756289,104730.0,104720.0,0.28403219]
[1749927141932,0.03756277,104730.0,104720.0,0.28403219]
[1749927142156,0.0286437,104730.0,104720.0,0.36679565]
[1749927142365,0.03756278,104730.0,104720.0,0.36679565]
[1749927142581,0.0286437,104730.0,104720.0,0.36679565]
[1749927142787,0.03756278,104730.0,104720.0,0.36679565]
[1749927143476,0.04711096,104730.0,104720.0,0.28403219]
[1749927144383,0.03819188,104730.0,104720.0,0.28403219]
[1749927144590,0.04711082,104730.0,104720.0,0.28403219]
[1749927144796,0.04711076,104730.0,104720.0,0.28403219]
[1749927145004,0.04711086,104730.0,104720.0,0.28403219]
[1749927145212,0.03756278,104730.0,104720.0,0.28403219]
[1749927145421,0.0286438,104730.0,104720.0,0.28403219]
[1749927145664,4.79267733,104730.0,104720.0,0.001]
[1749927145873,4.72760529,104730.0,104720.0,0.001]
[1749927146087,4.77132533,104730.0,104720.0,0.001]
[1749927146295,4.76240732,104730.0,104720.0,0.001]
[1749927147375,4.77132546,104730.0,104720.0,0.001]
[1749927147598,4.77132548,104730.0,104720.0,0.001]
[1749927147806,4.76240732,104730.0,104720.0,0.001]
[1749927148267,4.77132546,104730.0,104720.0,0.001]
[1749927149826,4.76240732,104730.0,104720.0,0.001]
[1749927150059,4.77132538,104730.0,104720.0,0.001]
[1749927150275,4.76240732,104730.0,104720.0,0.001]
[1749927150493,4.77132537,104730.0,104720.0,0.04214927]
[1749927150705,4.76240732,104730.0,104720.0,0.04214927]
[1749927150930,4.77132543,104730.0,104720.0,0.063]
[1749927151148,4.76240732,104730.0,104720.0,0.063]
[1749927151365,4.77132541,104730.0,104720.0,0.063]
[1749927152028,4.77132541,104730.0,104700.0,0.19102196]
[1749927152029,4.527924,104720.0,104690.0,0.13761794]
[1749927152284,0.54057287,104700.0,104690.0,0.13761794]
[1749927152509,4.75291687,104700.0,104690.0,0.13761794]
[1749927152735,4.75291687,104700.0,104690.0,0.33821016]
[1749927153210,4.74336596,104700.0,104690.0,0.07561794]
[1749927153450,4.36921622,104690.0,104680.0,0.39360943]
[1749927153674,4.37876768,104690.0,104680.0,0.27220986]
[1749927153903,4.38831941,104690.0,104680.0,0.28176241]
[1749927154124,4.39787096,104690.0,104680.0,0.29131478]
[1749927154607,4.39787077,104690.0,104680.0,0.29131478]
[1749927154845,4.40742278,104690.0,104680.0,0.29131478]
[1749927156014,4.168624,104690.0,104680.0,0.30086706]
[1749927156255,0.34,104690.0,104680.0,0.4690482]
[1749927156482,0.34,104690.0,104680.0,0.39710882]
[1749927156704,0.34955118,104690.0,104680.0,0.39710882]
[1749927157147,0.34,104690.0,104680.0,0.39710882]
[1749927157382,0.3584679,104690.0,104680.0,0.39710882]
[1749927157605,0.3584679,104690.0,104680.0,0.40110882]
[1749927158055,0.35846791,104690.0,104680.0,0.40110882]
[1749927158280,0.34955118,104690.0,104680.0,0.40110882]
[1749927158509,0.35846824,104690.0,104680.0,0.40110882]
[1749927159177,0.34955118,104690.0,104680.0,0.40110882]
[1749927159844,0.35910246,104690.0,104680.0,0.40110882]
[1749927160063,0.34955118,104690.0,104680.0,0.40110882]
[1749927160514,0.00955118,104690.0,104680.0,0.40110882]
[1749927162111,0.01910255,104690.0,104680.0,0.40110882]
[1749927162361,0.01910246,104690.0,104680.0,0.40110882]
[1749927162593,0.00955118,104690.0,104680.0,0.40110882]
[1749927162838,0.01910246,104690.0,104680.0,0.40110882]
[1749927164659,0.3736434,104700.0,104690.0,0.29224678]
[1749927164872,0.3736434,104700.0,104690.0,0.45332678]
[1749927165110,0.21014358,104690.0,104680.0,0.00404779]
[1749927165334,0.21014358,104690.0,104680.0,0.43817181]
[1749927165565,0.21014358,104690.0,104680.0,0.37321181]
[1749927165791,0.01910337,104690.0,104680.0,0.39231655]
[1749927166013,0.01910337,104690.0,104680.0,0.39031655]
[1749927166558,0.02865465,104690.0,104680.0,0.39031655]
[1749927166756,0.02865465,104690.0,104680.0,0.42571655]
[1749927168058,0.02865465,104690.0,104680.0,0.45611655]
[1749927168716,0.02865456,104690.0,104680.0,0.45611655]
[1749927168935,0.02865447,104690.0,104680.0,0.45611655]
[1749927169355,4.56648595,104700.0,104690.0,0.25109541]
[1749927169571,0.00499122,104700.0,104690.0,0.36666472]
[1749927169780,0.35454158,104700.0,104690.0,0.36666472]
[1749927170037,0.36409213,104700.0,104690.0,0.36666472]
[1749927170710,0.01454149,104700.0,104690.0,0.36666472]
[1749927171389,0.00499122,104700.0,104690.0,0.39541624]
[1749927171615,0.34,104710.0,104700.0,0.21967414]
[1749927171825,0.34,104710.0,104700.0,0.44417414]
[1749927171826,4.508624,104710.0,104700.0,0.44417414]
[1749927172265,4.52709122,104710.0,104700.0,0.44417414]
[1749927172479,4.53727336,104710.0,104700.0,0.44417414]
[1749927172710,0.34954936,104710.0,104700.0,0.44417414]
[1749927172927,0.34991757,104710.0,104700.0,0.44417414]
[1749927173130,0.343,104710.0,104700.0,0.44417414]
[1749927173342,0.34891736,104710.0,104700.0,0.44417414]
[1749927173552,0.34,104710.0,104700.0,0.44417414]
[1749927173731,0.00891759,104710.0,104700.0,0.44417414]
[1749927173983,4.58059108,104720.0,104710.0,0.28315317]
[1749927174189,4.57104135,104720.0,104710.0,0.28315317]
[1749927174397,4.54618772,104720.0,104710.0,0.28315317]
[1749927174604,4.5895077,104720.0,104710.0,0.28315317]
[1749927174815,4.59905675,104720.0,104710.0,0.28315317]
[1749927175042,4.59968862,104720.0,104710.0,0.28315317]
[1749927175276,4.60860664,104720.0,104710.0,0.28315317]
[1749927175499,4.61060669,104720.0,104710.0,0.28315317]
[1749927175722,4.6106067,104720.0,104710.0,0.28315317]
[1749927175945,4.85482648,104720.0,104710.0,0.21010381]
[1749927176188,4.77394512,104720.0,104710.0,0.21010381]
[1749927176404,4.7739451,104720.0,104710.0,0.21010381]
[1749927176625,4.7739451,104720.0,104710.0,0.21965372]
[1749927177057,4.76502793,104720.0,104710.0,0.21965372]
[1749927177271,4.72170793,104720.0,104710.0,0.21965372]
[1749927177524,4.76502793,104720.0,104710.0,0.21965372]
[1749927177776,4.72170793,104720.0,104710.0,0.21965372]
[1749927178001,0.01191542,104720.0,104710.0,0.43932867]
[1749927178209,0.003,104720.0,104710.0,0.53557043]
[1749927178864,0.002,104720.0,104710.0,0.47341278]
[1749927179284,0.38864298,104730.0,104720.0,0.21963219]
[1749927179499,0.39755911,104730.0,104720.0,0.44303219]
[1749927179925,0.3975592,104730.0,104720.0,0.44303219]
[1749927180137,0.39755912,104730.0,104720.0,0.44303219]
[1749927180345,0.38864298,104730.0,104720.0,0.44303219]
[1749927180555,0.38801131,104730.0,104720.0,0.44307998]
[1749927180978,0.37909517,104730.0,104720.0,0.44307998]
[1749927181189,0.37846368,104730.0,104720.0,0.44307998]
[1749927181381,0.36954754,104730.0,104720.0,0.44307998]
[1749927181678,0.36,104730.0,104720.0,0.52558422]
[1749927181894,0.36,104730.0,104720.0,0.37872174]
[1749927182112,0.36,104730.0,104720.0,0.53924174]
[1749927182564,0.02,104730.0,104720.0,0.53924174]
[1749927185109,0.02,104730.0,104720.0,0.54124174]
[1749927185331,0.02,104730.0,104720.0,0.54324174]
[1749927185570,0.02,104730.0,104720.0,0.62613798]
[1749927191103,0.02,104730.0,104720.0,0.46561798]
[1749927191333,0.02,104730.0,104720.0,0.38272174]
[1749927191590,0.02,104730.0,104720.0,0.54316174]
[1749927193968,0.36,104730.0,104720.0,0.54308174]
[1749927194457,0.36,104730.0,104720.0,0.38272174]
[1749927194702,0.36,104730.0,104720.0,0.54308174]
[1749927194954,0.36,104730.0,104720.0,0.38272174]
[1749927195176,0.36,104730.0,104720.0,0.54308174]
[1749927195628,0.36954754,104730.0,104720.0,0.54308174]
[1749927196114,0.36,104730.0,104720.0,0.54308174]
[1749927196564,0.36954763,104730.0,104720.0,0.54308174]
[1749927196752,0.36954754,104730.0,104720.0,0.54308174]
[1749927197044,0.36,104730.0,104720.0,0.54308174]
[1749927197265,0.36954754,104730.0,104720.0,0.54308174]
[1749927198679,0.57961095,104730.0,104720.0,0.3731733]
[1749927198895,0.57961095,104730.0,104720.0,0.51098211]